fUST/lending_fUST_20250819
["ID","MTS","AMOUNT","RATE_DAILY","PERIOD"]
[380145442,1755574239448,-480.0,0.00019178,2]
[380145444,1755574239457,-1262.97,0.00019178,2]
[380145446,1755574239468,-480.0,0.00019178,2]
[380145448,1755574239477,-436.57500227,0.00019178,2]
[380145450,1755574239486,-480.0,0.00019178,2]
[380145452,1755574239495,-480.0,0.00019178,2]
[380145454,1755574239504,-825.48,0.00019178,2]
[380145456,1755574239513,-460.0,0.00019178,2]
[380145458,1755574239522,-480.0,0.00019178,2]
[380145460,1755574239531,-668.48,0.00019178,2]
[380145462,1755574239540,-480.0,0.00019178,2]
[380145464,1755574239549,-481.07710183,0.00019178,2]
[380145466,1755574239559,-480.0,0.00019178,2]
[380145467,1755574239569,-480.0,0.00019178,2]
[380145469,1755574239578,-480.0,0.00019178,2]
[380145471,1755574239587,-480.0,0.00019178,2]
[380145473,1755574239596,-480.0,0.00019178,2]
[380145475,1755574239606,-233.57057935,0.00019178,2]
[380145477,1755574239615,-480.0,0.00019178,2]
[380145479,1755574239624,-480.0,0.00019178,2]
[380145481,1755574239633,-707.69,0.00019178,2]
[380145483,1755574239642,-468.3254689,0.00019178,2]
[380145485,1755574239651,-480.0,0.00019178,2]
[380145487,1755574239661,-482.28553337,0.00019178,2]
[380145489,1755574239670,-480.0,0.00019178,2]
[380145491,1755574239681,-480.0,0.00019178,2]
[380145493,1755574239690,-484.95322316,0.00019178,2]
[380145495,1755574239700,-480.0,0.00019178,2]
[380145497,1755574239709,-480.0,0.00019178,2]
[380145499,1755574239718,-480.0,0.00019178,2]
[380145502,1755574239727,-480.0,0.00019178,2]
[380145504,1755574239737,-480.0,0.00019178,2]
[380145506,1755574239749,-480.0,0.00019178,2]
[380145508,1755574239758,-480.0,0.00019178,2]
[380145510,1755574239768,-480.0,0.00019178,2]
[380145512,1755574239777,-1613.78,0.00019178,2]
[380145514,1755574239786,-1351.58,0.00019178,2]
[380145516,1755574239794,-480.0,0.00019178,2]
[380145518,1755574239804,-480.0,0.00019178,2]
[380145520,1755574239813,-480.0,0.00019178,2]
[380145522,1755574239822,-480.0,0.00019178,2]
[380145524,1755574239831,-1136.84,0.00019178,2]
[380145526,1755574239840,-461.54439111,0.00019178,2]
[380145528,1755574239850,-480.0,0.00019178,2]
[380145529,1755574239859,-300.98365471,0.00019178,2]
[380145531,1755574239869,-480.0,0.00019178,2]
[380145533,1755574239878,-436.13498622,0.00019178,2]
[380145535,1755574239887,-1722.05,0.00019178,2]
[380145537,1755574239896,-780.11,0.00019178,2]
[380145538,1755574239905,-520.04,0.00019178,2]
[380145539,1755574239914,-480.0,0.00019178,2]
[380145541,1755574239924,-480.0,0.00019178,2]
[380145543,1755574239933,-480.0,0.00019178,2]
[380145545,1755574239942,-628.99,0.00019178,2]
[380145546,1755574239952,-480.0,0.00019178,2]
[380145547,1755574239961,-480.0,0.00019178,2]
[380145548,1755574239971,-480.0,0.00019178,2]
[380145549,1755574239981,-480.0,0.00019178,2]
[380145550,1755574239990,-480.0,0.00019178,2]
[380145551,1755574239999,-480.0,0.00019178,2]
[380145552,1755574240008,-705.42,0.00019178,2]
[380145553,1755574240017,-805.17,0.00019178,2]
[380145554,1755574240027,-463.69029227,0.00019178,2]
[380145556,1755574240036,-1489.02,0.00019178,2]
[380145558,1755574240045,-480.0,0.00019178,2]
[380145559,1755574240055,-610.27,0.00019178,2]
[380145560,1755574240064,-480.0,0.00019178,2]
[380145561,1755574240073,-480.0,0.00019178,2]
[380145562,1755574240082,-1222.13,0.00019178,2]
[380145563,1755574240092,-480.0,0.00019178,2]
[380145564,1755574240101,-480.0,0.00019178,2]
[380145565,1755574240111,-480.0,0.00019178,2]
[380145566,1755574240120,-484.03177154,0.00019178,2]
[380145567,1755574240129,-480.0,0.00019178,2]
[380145568,1755574240138,-1437.14,0.00019178,2]
[380145569,1755574240148,-480.0,0.00019178,2]
[380145570,1755574240157,-443.16705912,0.00019178,2]
[380145571,1755574240166,-480.0,0.00019178,2]
[380145572,1755574240175,-462.95739924,0.00019178,2]
[380145573,1755574240184,-480.0,0.00019178,2]
[380145574,1755574240194,-2586.84,0.00019178,2]
[380145575,1755574240202,-480.0,0.00019178,2]
[380145576,1755574240212,-480.0,0.00019178,2]
[380145577,1755574240222,-480.0,0.00019178,2]
[380145578,1755574240232,-484.45377568,0.00019178,2]
[380145579,1755574240241,-722.14,0.00019178,2]
[380145580,1755574240251,-2015.33,0.00019178,2]
[380145581,1755574240260,-480.0,0.00019178,2]
[380145582,1755574240269,-480.0,0.00019178,2]
[380145583,1755574240279,-480.0,0.00019178,2]
[380145584,1755574240290,-482.14650222,0.00019178,2]
[380145585,1755574240299,-480.0,0.00019178,2]
[380145586,1755574240309,-480.0,0.00019178,2]
[380145589,1755574240318,-480.0,0.00019178,2]
[380145590,1755574240327,-480.0,0.00019178,2]
[380145591,1755574240336,-800.42,0.00019178,2]
[380145592,1755574240345,-480.0,0.00019178,2]
[380145593,1755574240354,-480.0,0.00019178,2]
[380145594,1755574240364,-480.0,0.00019178,2]
[380145595,1755574240373,-480.0,0.00019178,2]
[380145596,1755574240382,-480.0,0.00019178,2]
[380145597,1755574240392,-481.92785345,0.00019178,2]
[380145598,1755574240401,-765.99,0.00019178,2]
[380145599,1755574240410,-480.0,0.00019178,2]
[380145600,1755574240419,-480.0,0.00019178,2]
[380145601,1755574240428,-481.81740817,0.00019178,2]
[380145602,1755574240438,-480.0,0.00019178,2]
[380145603,1755574240447,-483.24749275,0.00019178,2]
[380145604,1755574240456,-480.0,0.00019178,2]
[380145605,1755574240464,-480.0,0.00019178,2]
[380145606,1755574240477,-1323.55,0.00019178,2]
[380145607,1755574240486,-488.88,0.00019178,2]
[380145608,1755574240495,-480.0,0.00019178,2]
[380145609,1755574240503,-4536.92,0.00019178,2]
[380145610,1755574240512,-480.0,0.00019178,2]
[380145611,1755574240521,-480.0,0.00019178,2]
[380145612,1755574240530,-480.0,0.00019178,2]
[380145613,1755574240540,-480.0,0.00019178,2]
[380145614,1755574240549,-480.0,0.00019178,2]
[380145615,1755574240558,-480.0,0.00019178,2]
[380145616,1755574240654,-480.0,0.00019178,2]
[380145617,1755574240663,-480.0,0.00019178,2]
[380145618,1755574240672,-1571.27,0.00019178,2]
[380145619,1755574240682,-462.66014067,0.00019178,2]
[380145620,1755574240691,-480.0,0.00019178,2]
[380145621,1755574240700,-480.0,0.00019178,2]
[380145622,1755574240709,-480.0,0.00019178,2]
[380145623,1755574240719,-480.0,0.00019178,2]
[380145624,1755574240728,-666.76,0.00019178,2]
[380145625,1755574240738,-480.0,0.00019178,2]
[380145626,1755574240747,-504.69,0.00019178,2]
[380145627,1755574240759,-465.61858321,0.00019178,2]
[380145628,1755574240769,-480.0,0.00019178,2]
[380145629,1755574240778,-480.0,0.00019178,2]
[380145630,1755574240787,-480.0,0.00019178,2]
[380145631,1755574240796,-480.0,0.00019178,2]
[380145632,1755574240805,-329.16332291,0.00019178,2]
[380145634,1755574240815,-480.0,0.00019178,2]
[380145636,1755574240824,-503.57144601,0.00019178,2]
[380145637,1755574240833,-480.0,0.00019178,2]
[380145638,1755574240842,-480.0,0.00019178,2]
[380145639,1755574240851,-480.0,0.00019178,2]
[380145640,1755574240860,-554.41439668,0.00019178,2]
[380145641,1755574240869,-736.48,0.00019178,2]
[380145643,1755574240878,-480.0,0.00019178,2]
[380145645,1755574240887,-480.0,0.00019178,2]
[380145647,1755574240896,-480.0,0.00019178,2]
[380145648,1755574240906,-480.0,0.00019178,2]
[380145649,1755574240916,-480.0,0.00019178,2]
[380145650,1755574240925,-480.0,0.00019178,2]
[380145651,1755574240935,-480.0,0.00019178,2]
[380145652,1755574240944,-480.0,0.00019178,2]
[380145653,1755574240953,-480.0,0.00019178,2]
[380145654,1755574240962,-480.0,0.00019178,2]
[380145655,1755574240972,-576.18,0.00019178,2]
[380145656,1755574240981,-480.0,0.00019178,2]
[380145657,1755574240991,-480.0,0.00019178,2]
[380145658,1755574240999,-480.0,0.00019178,2]
[380145659,1755574241010,-480.0,0.00019178,2]
[380145660,1755574241019,-484.59701226,0.00019178,2]
[380145661,1755574241028,-480.0,0.00019178,2]
[380145662,1755574241037,-480.0,0.00019178,2]
[380145663,1755574241046,-480.0,0.00019178,2]
[380145664,1755574241056,-480.0,0.00019178,2]
[380145665,1755574241065,-574.17,0.00019178,2]
[380145666,1755574241075,-480.0,0.00019178,2]
[380145667,1755574241084,-480.0,0.00019178,2]
[380145668,1755574241093,-480.0,0.00019178,2]
[380145669,1755574241102,-480.0,0.00019178,2]
[380145670,1755574241112,-538.69,0.00019178,2]
[380145671,1755574241122,-480.0,0.00019178,2]
[380145672,1755574241131,-549.22,0.00019178,2]
[380145673,1755574241140,-480.0,0.00019178,2]
[380145674,1755574241149,-480.0,0.00019178,2]
[380145675,1755574241159,-754.45,0.00019178,2]
[380145676,1755574241167,-480.0,0.00019178,2]
[380145677,1755574241177,-480.0,0.00019178,2]
[380145678,1755574241185,-480.0,0.00019178,2]
[380145679,1755574241195,-5394.02,0.00019178,2]
[380145680,1755574241204,-1725.58,0.00019178,2]
[380145681,1755574241213,-628.74,0.00019178,2]
[380145682,1755574241222,-483.32153543,0.00019178,2]
[380145683,1755574241231,-474.55400472,0.00019178,2]
[380145684,1755574241241,-480.0,0.00019178,2]
[380145685,1755574241249,-480.0,0.00019178,2]
[380145686,1755574241259,-1253.58,0.00019178,2]
[380145687,1755574241268,-480.0,0.00019178,2]
[380145688,1755574241278,-480.0,0.00019178,2]
[380145689,1755574241287,-480.0,0.00019178,2]
[380145690,1755574241296,-480.0,0.00019178,2]
[380145691,1755574241305,-889.31,0.00019178,2]
[380145692,1755574241315,-480.0,0.00019178,2]
[380145693,1755574241324,-3866.32,0.00019178,2]
[380145694,1755574241334,-480.0,0.00019178,2]
[380145695,1755574241343,-523.46,0.00019178,2]
[380145696,1755574241353,-480.0,0.00019178,2]
[380145697,1755574241362,-5000.0,0.00019178,2]
[380145698,1755574241371,-5000.0,0.00019178,2]
[380145699,1755574241380,-1340.36565112,0.00019178,2]
[380145700,1755574241391,-666.0,0.00019178,2]
[380145701,1755574241400,-500.0,0.00019178,2]
[380145702,1755574241411,-649.11584513,0.00019284,2]
[380145703,1755574241421,-160.0,0.00019331,4]
[380145704,1755574241430,-1000.0,0.00019352,2]
[380145705,1755574241440,-1024.63566586,0.00019436,2]
[380145706,1755574241450,-480.0,0.00019452,2]
[380145707,1755574241459,-470.94230838,0.00019452,2]
[380145708,1755574241468,-403.82449699,0.00019452,2]
[380145709,1755574241479,-480.0,0.00019452,2]
[380145710,1755574241496,-480.0,0.00019452,2]
[380145711,1755574241511,-480.0,0.00019452,2]
[380145712,1755574241524,-448.18439522,0.00019452,2]
[380145713,1755574241538,-480.0,0.00019452,2]
[380145714,1755574241551,-480.0,0.00019452,2]
[380145715,1755574241565,-350.37270005,0.00019452,2]
[380145716,1755574241580,-480.0,0.00019452,2]
[380145717,1755574241594,-460.0,0.00019452,2]
[380145718,1755574241610,-480.0,0.00019452,2]
[380145719,1755574241622,-480.0,0.00019452,2]
[380145720,1755574241636,-480.0,0.00019452,2]
[380145721,1755574241648,-480.0,0.00019452,2]
[380145722,1755574241661,-386.77145185,0.00019452,2]
[380145723,1755574241675,-480.0,0.00019452,2]
[380145724,1755574241688,-480.0,0.00019452,2]
[380145725,1755574241699,-480.0,0.00019452,2]
[380145726,1755574241712,-480.0,0.00019452,2]
[380145727,1755574241726,-480.0,0.00019452,2]
[380145728,1755574241740,-480.0,0.00019452,2]
[380145729,1755574241757,-480.0,0.00019452,2]
[380145730,1755574241772,-480.0,0.00019452,2]
[380145731,1755574241786,-404.3486861,0.00019452,2]
[380145732,1755574241801,-480.0,0.00019452,2]
[380145733,1755574241812,-470.02391181,0.00019452,2]
[380145734,1755574241823,-480.0,0.00019452,2]
[380145735,1755574241834,-2426.49,0.00019452,2]
[380145736,1755574241850,-480.0,0.00019452,2]
[380145737,1755574241865,-480.0,0.00019452,2]
[380145738,1755574241876,-480.0,0.00019452,2]
[380145739,1755574241889,-420.84557211,0.00019452,2]
[380145740,1755574241903,-480.0,0.00019452,2]
[380145741,1755574241915,-480.0,0.00019452,2]
[380145742,1755574241927,-480.0,0.00019452,2]
[380145743,1755574241938,-480.0,0.00019452,2]
[380145744,1755574241951,-480.0,0.00019452,2]
[380145745,1755574241963,-573.68,0.00019452,2]
[380145746,1755574241975,-480.0,0.00019452,2]
[380145747,1755574241987,-480.0,0.00019452,2]
[380145748,1755574241999,-1755.67,0.00019452,2]
[380145749,1755574242010,-480.0,0.00019452,2]
[380145750,1755574242021,-3156.46,0.00019452,2]
[380145751,1755574242033,-480.0,0.00019452,2]
[380145752,1755574242047,-480.0,0.00019452,2]
[380145753,1755574242058,-480.0,0.00019452,2]
[380145754,1755574242071,-480.0,0.00019452,2]
[380145755,1755574242083,-480.0,0.00019452,2]
[380145756,1755574242095,-480.0,0.00019452,2]
[380145757,1755574242106,-602.65,0.00019452,2]
[380145758,1755574242118,-480.0,0.00019452,2]
[380145759,1755574242129,-480.0,0.00019452,2]
[380145760,1755574242140,-480.0,0.00019452,2]
[380145761,1755574242152,-480.0,0.00019452,2]
[380145762,1755574242164,-463.44535643,0.00019452,2]
[380145763,1755574242175,-480.0,0.00019452,2]
[380145764,1755574242188,-480.0,0.00019452,2]
[380145765,1755574242200,-635.93,0.00019452,2]
[380145766,1755574242212,-990.28,0.00019452,2]
[380145767,1755574242224,-480.0,0.00019452,2]
[380145768,1755574242236,-480.0,0.00019452,2]
[380145769,1755574242248,-480.0,0.00019452,2]
[380145770,1755574242259,-480.0,0.00019452,2]
[380145771,1755574242270,-480.0,0.00019452,2]
[380145772,1755574242282,-480.0,0.00019452,2]
[380145773,1755574242294,-480.0,0.00019452,2]
[380145774,1755574242306,-480.0,0.00019452,2]
[380145775,1755574242319,-480.0,0.00019452,2]
[380145776,1755574242331,-480.0,0.00019452,2]
[380145777,1755574242342,-480.0,0.00019452,2]
[380145778,1755574242353,-480.0,0.00019452,2]
[380145779,1755574242364,-480.0,0.00019452,2]
[380145780,1755574242376,-776.16,0.00019452,2]
[380145781,1755574242387,-480.0,0.00019452,2]
[380145782,1755574242400,-480.0,0.00019452,2]
[380145783,1755574242412,-480.0,0.00019452,2]
[380145784,1755574242424,-1262.97,0.00019452,2]
[380145785,1755574242436,-480.0,0.00019452,2]
[380145786,1755574242447,-480.0,0.00019452,2]
[380145787,1755574242458,-480.0,0.00019452,2]
[380145788,1755574242470,-825.48,0.00019452,2]
[380145789,1755574242481,-480.0,0.00019452,2]
[380145790,1755574242493,-668.48,0.00019452,2]
[380145791,1755574242505,-480.0,0.00019452,2]
[380145792,1755574242516,-480.0,0.00019452,2]
[380145793,1755574242527,-480.0,0.00019452,2]
[380145794,1755574242536,-480.0,0.00019452,2]
[380145797,1755574242677,-480.0,0.00019452,2]
[380145799,1755574242693,-480.0,0.00019452,2]
[380145800,1755574242703,-480.0,0.00019452,2]
[380145801,1755574242712,-707.69,0.00019452,2]
[380145802,1755574242722,-480.0,0.00019452,2]
[380145804,1755574242731,-480.0,0.00019452,2]
[380145805,1755574242741,-480.0,0.00019452,2]
[380145806,1755574242751,-480.0,0.00019452,2]
[380145807,1755574242762,-480.0,0.00019452,2]
[380145808,1755574242771,-480.0,0.00019452,2]
[380145809,1755574242780,-480.0,0.00019452,2]
[380145810,1755574242792,-480.0,0.00019452,2]
[380145811,1755574242802,-480.0,0.00019452,2]
[380145812,1755574242811,-480.0,0.00019452,2]
[380145813,1755574242821,-480.0,0.00019452,2]
[380145814,1755574242832,-1351.58,0.00019452,2]
[380145815,1755574242841,-1613.78,0.00019452,2]
[380145816,1755574242850,-480.0,0.00019452,2]
[380145817,1755574242860,-480.0,0.00019452,2]
[380145818,1755574242869,-480.0,0.00019452,2]
[380145819,1755574242878,-480.0,0.00019452,2]
[380145820,1755574242888,-1136.84,0.00019452,2]
[380145821,1755574242897,-480.0,0.00019452,2]
[380145822,1755574242907,-409.93891646,0.00019452,2]
[380145823,1755574242916,-1722.05,0.00019452,2]
[380145824,1755574242929,-780.11,0.00019452,2]
[380145825,1755574242938,-520.04,0.00019452,2]
[380145826,1755574242947,-551.50257906,0.00019452,2]
[380145827,1755574242956,-205.10318379,0.00019452,2]
[380145828,1755574242966,-192.18021403,0.00019452,2]
[380145829,1755574242980,-628.99,0.00019452,2]
[380145830,1755574242989,-480.0,0.00019452,2]
[380145831,1755574242999,-485.57299147,0.00019452,2]
[380145832,1755574243008,-485.59543603,0.00019452,2]
[380145833,1755574243017,-389.46361166,0.00019452,2]
[380145834,1755574243027,-705.42,0.00019452,2]
[380145835,1755574243036,-547.23815708,0.00019452,2]
[380145836,1755574243045,-805.17,0.00019452,2]
[380145837,1755574243055,-1489.02,0.00019452,2]
[380145838,1755574243063,-480.0,0.00019452,2]
[380145839,1755574243073,-610.27,0.00019452,2]
[380145840,1755574243082,-491.02221322,0.00019452,2]
[380145841,1755574243091,-480.0,0.00019452,2]
[380145842,1755574243101,-1222.13,0.00019452,2]
[380145843,1755574243110,-480.0,0.00019452,2]
[380145844,1755574243119,-480.0,0.00019452,2]
[380145845,1755574243128,-480.0,0.00019452,2]
[380145846,1755574243138,-1437.14,0.00019452,2]
[380145847,1755574243148,-480.0,0.00019452,2]
[380145848,1755574243157,-2586.84,0.00019452,2]
[380145849,1755574243166,-722.14,0.00019452,2]
[380145850,1755574243175,-2015.33,0.00019452,2]
[380145851,1755574243184,-480.0,0.00019452,2]
[380145852,1755574243194,-480.0,0.00019452,2]
[380145853,1755574243203,-480.0,0.00019452,2]
[380145854,1755574243212,-480.0,0.00019452,2]
[380145855,1755574243223,-480.0,0.00019452,2]
[380145856,1755574243232,-800.42,0.00019452,2]
[380145858,1755574243242,-480.0,0.00019452,2]
[380145860,1755574243251,-480.0,0.00019452,2]
[380145861,1755574243260,-484.98295218,0.00019452,2]
[380145862,1755574243270,-480.0,0.00019452,2]
[380145863,1755574243279,-480.0,0.00019452,2]
[380145864,1755574243289,-480.0,0.00019452,2]
[380145865,1755574243298,-480.0,0.00019452,2]
[380145866,1755574243307,-765.99,0.00019452,2]
[380145867,1755574243317,-480.0,0.00019452,2]
[380145868,1755574243326,-480.0,0.00019452,2]
[380145869,1755574243336,-480.0,0.00019452,2]
[380145870,1755574243345,-1323.55,0.00019452,2]
[380145871,1755574243355,-488.88,0.00019452,2]
[380145872,1755574243364,-4536.92,0.00019452,2]
[380145873,1755574243373,-480.0,0.00019452,2]
[380145874,1755574243383,-480.0,0.00019452,2]
[380145875,1755574243392,-480.0,0.00019452,2]
[380145876,1755574243401,-480.0,0.00019452,2]
[380145877,1755574243411,-1571.27,0.00019452,2]
[380145878,1755574243419,-480.0,0.00019452,2]
[380145879,1755574243428,-480.0,0.00019452,2]
[380145880,1755574243438,-480.0,0.00019452,2]
[380145881,1755574243447,-666.76,0.00019452,2]
[380145882,1755574243455,-481.20961981,0.00019452,2]
[380145883,1755574243465,-504.69,0.00019452,2]
[380145884,1755574243475,-480.0,0.00019452,2]
[380145885,1755574243484,-480.0,0.00019452,2]
[380145886,1755574243493,-480.0,0.00019452,2]
[380145887,1755574243503,-480.0,0.00019452,2]
[380145888,1755574243512,-480.0,0.00019452,2]
[380145889,1755574243521,-480.0,0.00019452,2]
[380145890,1755574243530,-736.48,0.00019452,2]
[380145891,1755574243539,-480.0,0.00019452,2]
[380145892,1755574243548,-480.0,0.00019452,2]
[380145893,1755574243558,-480.0,0.00019452,2]
[380145894,1755574243566,-480.0,0.00019452,2]
[380145895,1755574243575,-480.0,0.00019452,2]
[380145896,1755574243584,-480.0,0.00019452,2]
[380145897,1755574243593,-480.0,0.00019452,2]
[380145898,1755574243603,-480.0,0.00019452,2]
[380145899,1755574243612,-576.18,0.00019452,2]
[380145900,1755574243621,-480.0,0.00019452,2]
[380145901,1755574243631,-606.92055696,0.00019452,2]
[380145902,1755574243642,-480.0,0.00019452,2]
[380145903,1755574243651,-480.0,0.00019452,2]
[380145904,1755574243661,-480.0,0.00019452,2]
[380145905,1755574243670,-480.0,0.00019452,2]
[380145906,1755574243679,-574.17,0.00019452,2]
[380145907,1755574243689,-480.0,0.00019452,2]
[380145908,1755574243698,-480.0,0.00019452,2]
[380145909,1755574243707,-480.0,0.00019452,2]
[380145910,1755574243716,-480.0,0.00019452,2]
[380145911,1755574243727,-538.69,0.00019452,2]
[380145912,1755574243736,-480.0,0.00019452,2]
[380145913,1755574243745,-549.22,0.00019452,2]
[380145914,1755574243758,-480.0,0.00019452,2]
[380145915,1755574243767,-480.0,0.00019452,2]
[380145916,1755574243776,-754.45,0.00019452,2]
[380145917,1755574243786,-480.0,0.00019452,2]
[380145918,1755574243795,-480.0,0.00019452,2]
[380145919,1755574243804,-480.0,0.00019452,2]
[380145920,1755574243814,-5394.02,0.00019452,2]
[380145921,1755574243823,-1725.58,0.00019452,2]
[380145922,1755574243832,-628.74,0.00019452,2]
[380145923,1755574243842,-480.0,0.00019452,2]
[380145924,1755574243851,-1253.58,0.00019452,2]
[380145925,1755574243861,-480.0,0.00019452,2]
[380145926,1755574243870,-480.0,0.00019452,2]
[380145927,1755574243882,-889.31,0.00019452,2]
[380145928,1755574243892,-480.0,0.00019452,2]
[380145929,1755574243902,-480.0,0.00019452,2]
[380145930,1755574243911,-3866.32,0.00019452,2]
[380145931,1755574243920,-480.0,0.00019452,2]
[380145932,1755574243929,-523.46,0.00019452,2]
[380145933,1755574243939,-336.23610955,0.00019452,2]
[380145934,1755574243948,-649.11584513,0.00019489,2]
[380145935,1755574243957,-160.0,0.00019547,5]
[380145936,1755574243967,-200.0,0.00019561,20]
[380145937,1755574243978,-200.0,0.00019561,20]
[380145938,1755574243988,-200.0,0.00019561,20]
[380145939,1755574243998,-200.0,0.00019561,20]
[380145940,1755574244007,-200.0,0.00019561,20]
[380145941,1755574244016,-200.0,0.00019561,20]
[380145942,1755574244026,-200.0,0.00019561,20]
[380145943,1755574244035,-200.0,0.00019561,20]
[380145944,1755574244046,-200.0,0.00019561,20]
[380145945,1755574244055,-200.0,0.00019561,20]
[380145946,1755574244064,-200.0,0.00019561,20]
[380145947,1755574244074,-200.0,0.00019561,20]
[380145948,1755574244083,-200.0,0.00019561,20]
[380145949,1755574244092,-200.0,0.00019561,20]
[380145950,1755574244102,-200.0,0.00019561,20]
[380145951,1755574244111,-200.0,0.00019561,20]
[380145952,1755574244121,-200.0,0.00019561,20]
[380145953,1755574244130,-200.0,0.00019561,20]
[380145954,1755574244140,-200.0,0.00019561,20]
[380145955,1755574244149,-200.0,0.00019561,20]
[380145956,1755574244158,-600.0,0.00019561,20]
[380145957,1755574244167,-215.79176414,0.00019681,2]
[380145958,1755574244176,-417.15472785,0.00019681,2]
[380145959,1755574244186,-160.0,0.00019681,2]
[380145960,1755574244195,-160.0,0.00019681,2]
[380145961,1755574244204,-528.6845513,0.00019681,2]
[380145962,1755574244213,-375.88899365,0.00019681,2]
[380145963,1755574244222,-843.93972674,0.00019681,2]
[380145964,1755574244232,-12685.85563623,0.00019681,2]
[380145965,1755574244241,-216.8835046,0.00019681,2]
[380145966,1755574244251,-160.0,0.00019681,2]
[380145967,1755574244260,-232.21311493,0.00019681,2]
[380145968,1755574244269,-160.0,0.00019681,2]
[380145969,1755574244278,-649.11584513,0.00019695,2]
[380145970,1755574244287,-151.0,0.000197,2]
[380145971,1755574244297,-480.0,0.00019726,2]
[380145973,1755574244306,-480.0,0.00019726,2]
[380145975,1755574244315,-480.0,0.00019726,2]
[380145977,1755574244324,-480.0,0.00019726,2]
[380145979,1755574244333,-480.0,0.00019726,2]
[380145981,1755574244342,-480.0,0.00019726,2]
[380145983,1755574244351,-480.0,0.00019726,2]
[380145985,1755574244360,-480.0,0.00019726,2]
[380145987,1755574244369,-480.0,0.00019726,2]
[380145989,1755574244378,-480.0,0.00019726,2]
[380145991,1755574244387,-480.0,0.00019726,2]
[380145993,1755574244396,-480.0,0.00019726,2]
[380145995,1755574244406,-480.0,0.00019726,2]
[380145997,1755574244415,-480.0,0.00019726,2]
[380145998,1755574244424,-465.89491794,0.00019726,2]
[380146000,1755574244433,-2426.49,0.00019726,2]
[380146002,1755574244443,-480.0,0.00019726,2]
[380146004,1755574244454,-480.0,0.00019726,2]
[380146006,1755574244464,-480.0,0.00019726,2]
[380146008,1755574244472,-480.0,0.00019726,2]
[380146010,1755574244481,-463.98850853,0.00019726,2]
[380146012,1755574244490,-573.68,0.00019726,2]
[380146014,1755574244500,-480.0,0.00019726,2]
[380146016,1755574244509,-480.0,0.00019726,2]
[380146018,1755574244518,-1755.67,0.00019726,2]
[380146020,1755574244527,-480.0,0.00019726,2]
[380146022,1755574244536,-3156.46,0.00019726,2]
[380146024,1755574244546,-480.0,0.00019726,2]
[380146026,1755574244555,-480.0,0.00019726,2]
[380146027,1755574244564,-480.0,0.00019726,2]
[380146028,1755574244573,-480.0,0.00019726,2]
[380146029,1755574244583,-480.0,0.00019726,2]
[380146030,1755574244592,-480.0,0.00019726,2]
[380146031,1755574244602,-602.65,0.00019726,2]
[380146032,1755574244611,-480.0,0.00019726,2]
[380146033,1755574244620,-480.0,0.00019726,2]